[Event "31st MPL National U18G Chess-ch 2022"]
[Site "Pollachi"]
[Date "2022.04.18"]
[Round "1.1"]
[White "Jyothsna L"]
[Black "Serah Jo Sam"]
[Result "1-0"]
[ECO "A00"]
[WhiteElo "2052"]
[BlackElo "1203"]
[Annotator "TA"]
[PlyCount "89"]
[EventDate "2022.04.18"]
[EventCountry "IND"]
[SourceTitle "playchess.com"]
[Source "ChessBase"]
[SourceQuality "1"]
[TimeControl "5400+30"]

{[%evp 9,88,-5,-5,-26,-19,-25,-6,-25,0,0,8,-10,28,14,18,16,46,41,45,42,74,68,82,70,87,89,112,90,110,75,139,134,146,143,146,128,151,105,145,107,109,35,74,57,95,75,100,47,69,67,112,116,117,118,136,133,142,127,165,162,179,178,181,148,135,148,1657,1581,1416,1339,12839,12839,29970,29975,12841,12842,12841,12841,29998,29999,29999]} 1. b4 {[%emt 0:01:07]} Nf6 {[%emt 0:00:13]} 2. Bb2 {[%emt 0:00:09]} e6 {[%emt 0:00:20]} 3. a3 {[%emt 0:00:22]} Be7 {[%emt 0:00:11]} 4. e3 {[%emt 0:00:36]} d5 {[%emt 0:00:26]} 5. Nf3 {[%emt 0:02:44]} O-O {[%emt 0:00:14]} 6. d4 {[%emt 0:01:57] A00: Irregular Openings.} b6 {[%emt 0:01:19]} 7. Nbd2 {[%emt 0:07:55]} Bb7 {[%emt 0:04:17]} 8. Bd3 {[%emt 0:07:24] The position is equal.} Nbd7 {[%emt 0:00:33] [#]} 9. b5 $146 {[%emt 0:17:10]} ({Predecessor:} 9. O-O c5 10. c4 cxb4 11. axb4 Bxb4 12. Ba3 Bxa3 13. Rxa3 Qe7 14. Ra1 dxc4 15. Bxc4 {0-1 (46) Andrade Sandoval,M (1291)-Dominguez Coig,A (1684) Collado Villalba 2015}) 9... Ne4 {[%emt 0:03:16]} 10. c4 {[%emt 0:12:33]} Rc8 {[%emt 0:03:30]} 11. cxd5 {[%emt 0:03:36]} exd5 {[%emt 0:00:11]} 12. O-O {[%emt 0:09:39]} f5 {[%emt 0:01:30]} 13. Ne5 {[%emt 0:03:49]} Nxe5 {[%emt 0:00:57]} 14. dxe5 {[%emt 0:00:04]} Bc5 {[%emt 0:06:46]} 15. Nb3 {[%emt 0:07:29]} Qg5 {[%emt 0:02:55]} 16. Nd4 {[%emt 0:05:23] Black must now prevent Ne6.} Bxd4 {[%emt 0:03:03]} 17. Bxd4 {[%emt 0:01:53]} Nc5 {[%emt 0:04:34]} 18. f4 {[%emt 0:04:15]} Qg6 {[%emt 0:02:10]} 19. a4 {[%emt 0:01:36]} Ne6 {[%emt 0:01:36]} (19... Nxd3 $142 20. Qxd3 c6) 20. Rc1 {[%emt 0:03:56]} h6 {[%emt 0:01:19]} 21. Qd2 {[%emt 0:01:13]} Kh8 {[%emt 0:03:19]} 22. Kh1 {[%emt 0:00:54]} Qf7 {[%emt 0:02:02]} 23. Qe2 {[%emt 0:01:08]} (23. a5 $142) 23... h5 {[%emt 0:07:58]} 24. Rf3 {[%emt 0:01:42] [#] Threatens to win with Rh3. &Bianco is more active.} g6 {[%emt 0:01:25]} 25. Rh3 {[%emt 0:00:26]} ({Better is} 25. Ra1 $16) 25... Kg7 {[%emt 0:00:23]} 26. Rg3 {[%emt 0:00:36] Qxh5 is the strong threat.} Rh8 {[%emt 0:00:54]} 27. Rf3 {[%emt 0:00:47][%cal Bg3f3,Bf3f1,Bf1g1][%mdl 32]} Qe7 {[%emt 0:03:05]} 28. Qb2 {[%emt 0:01:40]} (28. Ra1 $16) 28... c5 $14 {[%emt 0:09:53]} 29. bxc6 $1 {[%emt 0:00:10]} Rxc6 {[%emt 0:00:21]} 30. Ra1 {[%emt 0:01:15]} Rhc8 {[%emt 0:03:47]} 31. h3 {[%emt 0:00:35]} Qc7 {[%emt 0:03:28]} 32. Rff1 {[%emt 0:00:32] Inhibits Rc1.} Kh7 {[%emt 0:01:55]} 33. Rg1 {[%emt 0:01:00]} Qe7 {[%emt 0:05:33]} 34. a5 {[%emt 0:00:48]} Nxd4 {[%emt 0:14:28]} 35. Qxd4 {[%emt 0:00:29]} Qc5 {[%emt 0:04:41]} 36. axb6 {[%emt 0:00:13]} Qxd4 {[%emt 0:00:29]} 37. exd4 {[%emt 0:00:05]} Rc3 $2 {[%emt 0:01:04][%mdl 8192] [#] Black cannot hold the game after this.} (37... Rxb6 $16 38. Rxa7 Rc3) 38. Rxa7 $1 $18 {[%emt 0:00:52]} Rxd3 {[%emt 0:00:45]} (38... Rb8 39. Ba6) 39. Rxb7+ {[%emt 0:00:01][%mdl 4096] Endgame KRR-KRR} Kg8 {[%emt 0:01:00]} 40. Rb1 {[%emt 0:00:24]} Rxd4 {[%emt 0:01:18]} 41. Ra7 {[%emt 0:00:46]} Rb8 {[%emt 0:02:45]} 42. b7 {[%emt 0:00:10] White wants to mate with Ra8.} Kh7 {[%emt 0:00:30]} 43. Ra8 {[%emt 0:00:05]} Rxb7 {[%emt 0:00:05]} 44. Rxb7+ {[%emt 0:00:04]} Kh6 {[%emt 0:00:06]} 45. Rh8# {[%emt 0:00:07] Weighted Error Value: White=0.15 (very precise) /Black=0.55} 1-0

[Event "31st MPL National U18G Chess-ch 2022"]
[Site "Pollachi"]
[Date "2022.04.18"]
[Round "1.2"]
[White "Sugirtha S"]
[Black "Bhagyashree Patil"]
[Result "0-1"]
[ECO "D35"]
[WhiteElo "1065"]
[BlackElo "1974"]
[Annotator "TA"]
[PlyCount "136"]
[EventDate "2022.04.18"]
[EventCountry "IND"]
[SourceTitle "playchess.com"]
[Source "ChessBase"]
[SourceQuality "1"]
[TimeControl "5400+30"]

{[%evp 9,135,0,0,0,16,0,0,-6,5,-10,7,-14,22,-21,25,-38,-7,-31,-7,-21,8,0,7,6,6,0,0,0,0,0,0,0,0,-12,-16,-20,0,-5,-8,-8,-8,-12,-4,-8,0,-18,0,-9,-2,-4,0,0,0,0,0,0,0,-10,0,0,0,0,0,0,0,0,0,0,0,0,0,0,0,0,0,0,0,0,5289,5181,2663,0,0,0,0,-29969,-12805,-29977,-29978,-29979,-29980,-29980,-29981,-29981,-29980,-29982,-29983,-29985,-29985,-29985,-29986,-29986,-29987,-29987,-29988,-29988,-29989,-29989,-29990,-29991,-29992,-29992,-29992,-29993,-29993,-29993,-29994,-29994,-29995,-29995,-29996,-29996,-29997,-29997,-29998,-29998,-29999,-29999]} 1. d4 {[%emt 0:00:05]} d5 {[%emt 0:00:03]} 2. c4 {[%emt 0:00:11]} e6 {[%emt 0:00:05]} 3. Nc3 {[%emt 0:00:21]} Nf6 {[%emt 0:00:03]} 4. Bf4 {[%emt 0:00:44]} Bd6 {[%emt 0:01:22]} 5. Bg3 {[%emt 0:01:02]} b6 {[%emt 0:00:26]} 6. Nf3 {[%emt 0:00:59] D35: Queen's Gambit Declined: Exchange Variation.} O-O {[%emt 0:00:13]} 7. e3 {[%emt 0:00:29]} Bb7 {[%emt 0:00:04]} 8. Be2 {[%emt 0:00:32] The position is equal. 8.Rc1 gains popularity.} Nbd7 {[%emt 0:00:15]} 9. O-O {[%emt 0:00:14] [#]} Qe7 $146 {[%emt 0:00:46]} ({Predecessor:} 9... Bxg3 10. hxg3 c5 11. cxd5 Nxd5 12. Rc1 Nxc3 13. Rxc3 Qe7 14. Qc2 a5 15. Rd1 Rac8 {1-0 (85) Nguyen,N (2641)-Bu,X (2705) Chess.com INT 2020}) 10. a3 {[%emt 0:04:14]} c5 {[%emt 1:32:13]} 11. Rc1 {[%emt 0:03:08]} Rac8 {[%emt 0:00:00]} (11... Bxg3 $142 12. hxg3 dxc4) 12. Nb1 {[%emt 0:07:39]} (12. Bxd6 $11 Qxd6 13. cxd5) 12... Rfd8 {[%emt 0:00:00]} 13. Nbd2 {[%emt 0:02:36]} cxd4 {[%emt 0:00:00]} 14. Nxd4 {[%emt 0:01:01]} Nc5 {[%emt 0:00:00]} 15. cxd5 {[%emt 0:04:37]} Nxd5 {[%emt 0:00:00]} 16. b4 {[%emt 0:03:12] [#] And now Bxd6 would win.} Nd7 {[%emt 0:00:00]} 17. Qb3 {[%emt 0:03:00]} Bxg3 {[%emt 0:00:00]} 18. hxg3 {[%emt 0:00:36]} Ne5 {[%emt 0:00:00]} 19. Nc4 {[%emt 0:04:38]} Nxc4 {[%emt 0:00:00]} 20. Bxc4 {[%emt 0:00:24]} a6 {[%emt 0:00:00]} 21. Bxd5 {[%emt 0:02:14]} Bxd5 {[%emt 0:00:00]} 22. Qb2 {[%emt 0:03:27]} e5 {[%emt 0:00:00] Threatens to win with ...Rxc1.} 23. Nf3 {[%emt 0:02:33]} f6 {[%emt 0:00:00]} 24. Rxc8 {[%emt 0:00:33]} Rxc8 {[%emt 0:00:00]} 25. Rc1 {[%emt 0:00:30] Prevents Qc7.} Rxc1+ {[%emt 0:00:00]} 26. Qxc1 {[%emt 0:00:05]} Qb7 {[%emt 0:00:00] Prevents Qc8+.} 27. Ne1 {[%emt 0:01:21]} a5 {[%emt 0:00:00]} 28. f3 {[%emt 0:01:48]} axb4 {[%emt 0:00:00]} 29. axb4 {[%emt 0:00:08]} b5 {[%emt 0:00:00]} 30. Qd2 {[%emt 0:01:10]} Bc4 {[%emt 0:00:00]} 31. Kf2 {[%emt 0:02:27]} h6 {[%emt 0:00:00]} 32. Nc2 {[%emt 0:06:43]} Qa7 {[%emt 0:00:00]} 33. Ne1 {[%emt 0:01:19]} Qa1 {[%emt 0:00:00]} 34. g4 {[%emt 0:02:22]} Qb1 {[%emt 0:00:00]} 35. Kg1 {[%emt 0:01:20]} e4 {[%emt 0:00:00]} 36. Kf2 {[%emt 0:02:23]} Kh7 {[%emt 0:13:00]} 37. Kg3 {[%emt 0:03:37]} Kg6 {[%emt 0:00:00]} 38. Kf4 {[%emt 0:04:44]} Bd3 {[%emt 0:00:00]} 39. Kg3 {[%emt 0:02:22]} Kf7 {[%emt 0:00:00]} 40. Kf2 {[%emt 0:01:37]} Ke6 {[%emt 0:00:00]} 41. Nxd3 {[%emt 0:01:31]} Qxd3 {[%emt 0:00:00]} (41... exd3 $5 42. e4 Qb3 $11) 42. Qxd3 {[%emt 0:00:17]} exd3 $11 {[%emt 0:00:00][%mdl 4096] Endgame KP-KP} 43. e4 $1 {[%emt 0:00:07] Black must now prevent Ke3.} ({Not} 43. Ke1 $2 Kd5 44. Kd2 Kc4 $19) 43... Ke5 $2 {[%emt 0:00:00][%mdl 8192]} (43... d2 $11 44. Ke2 Ke5) 44. Ke3 $18 {[%emt 0:00:16]} d2 {[%emt 0:00:00]} 45. Kxd2 $2 {[%emt 0:00:16]} (45. f4+ $18 Ke6 46. Kxd2) 45... Kd4 $11 {[%emt 0:00:00]} 46. g3 {[%emt 0:03:14]} Kc4 {[%emt 0:00:00]} (46... g6 $5) 47. Kc2 $2 {[%emt 0:02:00][%mdl 8192] [#] White is on the road to losing.} (47. Ke3 $11) 47... Kxb4 {[%emt 0:05:30] ( -> ...Kc4)} 48. Kb2 {[%emt 0:02:32]} Kc4 {[%emt 0:00:00] Black mates.} 49. Ka3 {[%emt 0:02:11]} Kd4 {[%emt 0:00:00]} 50. Kb4 {[%emt 0:01:03]} Ke3 {[%emt 0:00:00]} 51. f4 {[%emt 0:00:33]} Kxe4 {[%emt 0:00:00]} 52. Kxb5 {[%emt 0:00:06] K3P-K3P} Kf3 {[%emt 0:00:00][%csl LRg3,LRg4]} 53. g5 {[%emt 0:01:46]} Kxg3 {[%emt 0:00:00]} 54. gxf6 {[%emt 0:00:34]} gxf6 {[%emt 0:00:00] KPP-KP} 55. f5 {[%emt 0:00:13]} h5 {[%emt 0:00:00]} 56. Kc6 {[%emt 0:00:09]} Kf4 {[%emt 0:00:00]} 57. Kd6 {[%emt 0:00:11]} Kxf5 {[%emt 0:00:00] KP-KP} 58. Ke7 {[%emt 0:00:16]} h4 {[%emt 0:00:00]} 59. Kf7 {[%emt 0:00:08]} h3 {[%emt 0:00:00]} 60. Ke7 {[%emt 0:00:08]} h2 {[%emt 0:00:00]} 61. Kd7 {[%emt 0:01:40]} h1=Q {[%emt 0:00:00]} 62. Kd6 {[%emt 0:00:21]} Qe4 {[%emt 0:00:00]} 63. Kc5 {[%emt 0:00:08]} Ke6 {[%emt 0:00:00][%cal Bf5e6,Be6d6,Bd6c7][%mdl 32]} 64. Kb6 {[%emt 0:00:08]} Qc4 {[%emt 0:00:00]} 65. Kb7 {[%emt 0:00:12]} Kd6 {[%emt 0:00:00]} 66. Kb6 {[%emt 0:00:12]} Qb3+ {[%emt 0:00:00]} 67. Ka7 {[%emt 0:00:19]} Kc7 {[%emt 0:00:00][%csl Gc7][%cal Rb3b7]} 68. Ka8 {[%emt 0:00:12]} Qa4# {[%emt 0:00:00] Weighted Error Value: White=0.34/Black=0.06 (flawless)} 0-1

[Event "31st MPL National U18G Chess-ch 2022"]
[Site "Pollachi"]
[Date "2022.04.18"]
[Round "1.3"]
[White "Kheerthi Ganta"]
[Black "Nafeena Sameer"]
[Result "1-0"]
[ECO "D11"]
[WhiteElo "2011"]
[BlackElo "1184"]
[Annotator "TA"]
[PlyCount "67"]
[EventDate "2022.04.18"]
[EventCountry "IND"]
[SourceTitle "playchess.com"]
[Source "ChessBase"]
[SourceQuality "1"]
[TimeControl "5400+30"]

{[%evp 9,66,38,45,-16,-8,-6,-17,-16,-9,-41,296,323,320,318,312,302,425,352,465,464,460,454,472,472,466,291,315,321,450,432,455,352,316,272,272,273,954,279,1313,1307,1306,1293,1273,1245,1645,1608,29981,29982,29986,29987,29994,29993,29996,29997,29997,29998,29998,29999,29999]} 1. d4 {[%emt 0:00:20]} d5 {[%emt 0:00:26]} 2. c4 {[%emt 0:00:59]} c6 {[%emt 0:01:10]} 3. Nf3 {[%emt 0:01:16]} Bf5 {[%emt 0:02:25]} 4. cxd5 {[%emt 0:03:05]} cxd5 {[%emt 0:00:28]} 5. Nc3 {[%emt 0:00:39]} e6 {[%emt 0:01:12]} 6. e3 {[%emt 0:00:53] D11: Slav Defence: 3 Nf3 sidelines and 3...Nf6 4 e3 Bg4.} (6. Qb3 $14) 6... a6 {[%emt 0:02:55]} 7. Ne5 {[%emt 0:02:40] [#]} Bd6 $146 {[%emt 0:03:35]} ({Predecessor:} 7... Nd7 8. Nf3 Ngf6 9. a3 Bd6 10. Bd3 Ne4 11. Qc2 Rc8 12. Bd2 O-O 13. Qb1 Nxc3 14. Bxc3 Bxd3 15. Qxd3 {1-0 (37) Bjorkly,S (1368)-Mrachek,S (1628) Baerum 2019}) 8. Qa4+ {[%emt 0:01:27] The position is equal.} Nd7 {[%emt 0:01:29]} 9. Nxd7 {[%emt 0:02:08] Threatens to win with Nb6+.} Qxd7 {[%emt 0:01:36][%mdl 8192] [#] A mistake that costs the game.} (9... b5 $15 {stays ahead.} 10. Qd1 Qxd7) 10. Bb5 $1 $18 {[%emt 0:00:27][%mdl 512]} axb5 {[%emt 0:04:10]} 11. Qxa8+ {[%emt 0:00:11]} Ke7 {[%emt 0:03:39]} 12. a4 {[%emt 0:01:47]} Bb4 {[%emt 0:05:57]} (12... bxa4 {keeps fighting.} 13. Nxa4 Bb4+ 14. Nc3 Bd3) 13. Bd2 {[%emt 0:00:49]} Bd3 {[%emt 0:06:57]} 14. axb5 {[%emt 0:02:32]} (14. Nxd5+ Qxd5 15. Bxb4+ Kf6 $18) 14... Bxb5 {[%emt 0:03:54]} 15. Nxb5 {[%emt 0:05:58]} ({Don't do} 15. Nxd5+ Qxd5 16. Bxb4+ Kf6 $18) 15... Bxd2+ {[%emt 0:01:08]} 16. Kxd2 {[%emt 0:00:10]} Qxb5 {[%emt 0:00:24]} 17. Qa3+ {[%emt 0:00:05]} Kd7 {[%emt 0:01:43]} 18. Rhc1 {[%emt 0:00:43] [#] Hoping for Qf8.} Nf6 {[%emt 0:03:55]} (18... Ne7 {is a better defense.} 19. Rc5 Qb6) 19. f3 {[%emt 0:00:22]} Ne8 {[%emt 0:04:34]} 20. Rc5 {[%emt 0:00:18]} Qb6 {[%emt 0:01:30]} 21. Rac1 {[%emt 0:00:15]} Nd6 {[%emt 0:02:14] Prevents e4.} 22. b3 {[%emt 0:03:38] Against Nc4+} Rc8 $2 {[%emt 0:05:57]} (22... Rd8 23. g4 Ke7) 23. Qa4+ $2 {[%emt 0:04:40]} (23. Rxc8 {Black must now prevent Qa4+.} Nxc8 24. Qa4+ Ke7 25. Rxc8) 23... Kd8 $2 {[%emt 0:00:48]} (23... Rc6 24. Ra5 h5) 24. Rxc8+ {[%emt 0:00:10]} Nxc8 {[%emt 0:00:19][%mdl 4096] Endgame KQR-KQN} 25. Qa8 {[%emt 0:00:07]} Qb4+ {[%emt 0:02:28]} 26. Rc3 {[%emt 0:00:14]} Ke7 {[%emt 0:02:41]} 27. Qxc8 {[%emt 0:00:09]} f6 {[%emt 0:00:47]} 28. Kc2 {[%emt 0:01:01] White mates.} Kf7 {[%emt 0:01:00]} 29. Rc7+ {[%emt 0:00:21]} Kg6 {[%emt 0:00:16]} 30. Qxe6 {[%emt 0:00:09]} Qe1 {[%emt 0:01:10]} 31. Qg4+ {[%emt 0:00:10]} Kh6 {[%emt 0:00:23]} 32. Qxg7+ {[%emt 0:00:07]} Kh5 {[%emt 0:00:29]} 33. Qxh7+ {[%emt 0:00:03]} Kg5 {[%emt 0:00:31]} 34. Rg7# {[%emt 0:00:06] Weighted Error Value: White=0.53/Black=0.86} 1-0

[Event "31st MPL National U18G Chess-ch 2022"]
[Site "Pollachi"]
[Date "2022.04.18"]
[Round "1.4"]
[White "Nafila A"]
[Black "Rindhiya V"]
[Result "0-1"]
[ECO "C54"]
[WhiteElo "1142"]
[BlackElo "1949"]
[Annotator "TA"]
[PlyCount "72"]
[EventDate "2022.04.18"]
[EventCountry "IND"]
[SourceTitle "playchess.com"]
[Source "ChessBase"]
[SourceQuality "1"]
[TimeControl "5400+30"]

{[%evp 16,71,18,16,27,14,35,25,24,6,47,43,47,43,41,30,28,8,47,34,56,-77,-47,-40,0,-68,-107,-106,-97,-122,-95,-275,-256,-238,-186,-29985,-29986,-29986,-29987,-29987,-29988,-29988,-29989,-29988,-29989,-29989,-29988,-29990,-29991,-29991,-29992,-29994,-29995,-29995,-29996,-29998,-29999,-29999]} 1. e4 {[%emt 1:31:00]} e5 {[%emt 1:31:00]} 2. Nf3 {[%emt 0:00:30]} Nc6 {[%emt 0:00:30]} 3. Bc4 {[%emt 0:00:30]} Bc5 {[%emt 0:00:30]} 4. c3 {[%emt 0:00:30]} Nf6 {[%emt 0:00:30]} 5. d4 {[%emt 0:00:30]} exd4 {[%emt 0:00:30]} 6. e5 {[%emt 0:00:30]} d5 7. Bb5 {[%emt 0:00:30]} Ne4 {[%emt 0:01:00]} 8. cxd4 {[%emt 0:00:30]} Bb4+ {[%emt 0:00:30]} 9. Bd2 {[%emt 0:00:30]} Be7 {[%emt 0:00:30] C54: Giuoco Piano: 4 c3 Nf6, main lines with 5 d4 and 5 d3.} 10. O-O {[%emt 0:00:30]} O-O {[%emt 0:00:30]} 11. h3 {[%emt 0:00:30]} f6 {[%emt 0:00:30] White has an edge.} 12. Nc3 {[%emt 0:00:30] [#]} a6 $146 {[%emt 0:00:30]} ({Predecessor:} 12... Be6 13. Rc1 Kh8 14. Bxc6 bxc6 15. Qe2 f5 16. Na4 Qe8 17. Nc5 Bxc5 18. dxc5 Bf7 {1-0 (55) Webb,L (2325)-Swati,G (2299) Edinburgh 2003}) 13. Ba4 {[%emt 0:00:30][%cal Oc3d5]} Be6 {[%emt 0:00:30]} 14. Re1 {[%emt 0:00:30]} f5 {[%emt 0:00:30]} 15. Rc1 {[%emt 0:00:30]} Nb4 {[%emt 0:00:30]} 16. Qe2 {[%emt 0:00:30] Inhibits Nd3.} c5 {[%emt 0:00:30]} 17. a3 {[%emt 0:00:30]} (17. Nxe4 $2 fxe4 18. Nh2 (18. Bxb4 $2 exf3 19. Qd3 cxb4 $19) 18... cxd4 $19) 17... Nc6 {[%emt 0:00:30]} 18. Be3 {[%emt 0:00:30]} (18. Nxe4 $2 fxe4 19. Ng5 (19. Bxc6 $2 exf3 20. Qf1 bxc6 $19) 19... Bxg5 $19) (18. Bxc6 $14 {stays ahead.} bxc6 19. dxc5) 18... f4 {[%emt 0:00:30] &Nero is more active.} 19. Bd2 {[%emt 0:00:30]} Ng5 {[%emt 0:00:30]} 20. dxc5 {[%emt 0:00:30]} ({White should play} 20. Bxc6 $11 bxc6 21. dxc5) 20... Nxf3+ $15 {[%emt 0:00:30]} 21. Qxf3 {[%emt 0:00:30] Hoping for Bxc6.} Nd4 {[%emt 0:00:30]} 22. Qd3 {[%emt 0:00:30]} Bxc5 {[%emt 0:00:30]} 23. Kh2 $2 {[%emt 0:00:30] This costs White the game.} (23. Ne2 $17 Bf5 24. Nxd4 (24. Qc3 Nxe2+ 25. Rxe2 Rc8 $17) 24... Bxd3 25. Rxc5) 23... Ba7 {[%emt 0:00:30]} 24. f3 {[%emt 0:00:30]} Qh4 $1 {[%emt 0:00:30][%cal Oe6h3] ( -> ...Bxh3!)} 25. Ne2 $2 {[%emt 0:00:30] [#]} (25. Kh1 Bxh3 $1 {[%mdl 512]} 26. Bxf4 Rxf4 27. Re3 Bf5+ 28. Kg1 Nxf3+ $1 {[%mdl 512]} 29. gxf3 Qg3+ 30. Kf1 Bxd3+ 31. Ne2 Rxf3+ 32. Rxf3 Qg1#) (25. Qf1 $19) 25... Bxh3 $1 {[%emt 0:00:30][%mdl 512] Black mates.} 26. gxh3 {[%emt 0:00:30]} Qf2+ {[%emt 0:00:30]} 27. Kh1 {[%emt 0:00:30]} Nxf3 {[%emt 0:00:30][%csl Gf3][%cal Rf2h2]} 28. Qxd5+ {[%emt 0:00:30]} Kh8 {[%emt 0:00:30][%csl Gf3][%cal Rf2h2]} 29. Qxf3 {[%emt 0:00:30]} Qxf3+ {[%emt 0:00:30]} 30. Kh2 {[%emt 0:00:30]} Qf2+ {[%emt 0:00:30]} 31. Kh1 {[%emt 0:00:30]} f3 {[%emt 0:00:30][%csl Gf3][%cal Rf2g2]} 32. Rg1 {[%emt 0:00:30]} Qxe2 {[%emt 0:00:30]} 33. Bc3 {[%emt 0:00:30]} Bxg1 {[%emt 0:00:30]} 34. Rxg1 {[%emt 0:00:30]} f2 {[%emt 0:00:30]} 35. Rxg7 {[%emt 0:00:30]} f1=Q+ {[%emt 0:00:30]} 36. Rg1 {[%emt 0:00:30]} Qeg2# {[%emt 0:00:30] Weighted Error Value: White=0.43/Black=0.08 (flawless)} 0-1

[Event "31st MPL National U18G Chess-ch 2022"]
[Site "Pollachi"]
[Date "2022.04.18"]
[Round "1.5"]
[White "Shreshtha Surai"]
[Black "Shanmathi Sree S"]
[Result "1/2-1/2"]
[ECO "B13"]
[WhiteElo "1583"]
[BlackElo "1109"]
[Annotator "NA RC"]
[PlyCount "91"]
[EventDate "2022.04.18"]
[EventCountry "IND"]
[SourceTitle "playchess.com"]
[Source "ChessBase"]
[SourceQuality "1"]
[TimeControl "5400+30"]

1. e4 {[%emt 0:01:54]} c6 {[%emt 0:00:17]} 2. d4 {[%emt 0:01:13]} d5 {[%emt 0:00:13]} 3. exd5 {[%emt 0:00:37]} cxd5 {[%emt 0:00:16]} 4. Bd3 {[%emt 0:00:22]} Nc6 {[%emt 0:00:18]} 5. c3 {[%emt 0:00:26]} Nf6 {[%emt 0:00:50]} 6. Bf4 {[%emt 0:01:32]} a6 {[%emt 0:02:25]} 7. Nd2 {[%emt 0:01:29]} e6 {[%emt 0:02:18]} 8. Ngf3 {[%emt 0:01:39]} Be7 {[%emt 0:00:34]} 9. O-O {[%emt 0:01:47]} O-O {[%emt 0:00:13]} 10. Re1 {[%emt 0:02:25]} Bd7 {[%emt 0:03:11]} 11. Ne5 {[%emt 0:06:28]} Rc8 {[%emt 0:05:19]} 12. Ndf3 {[%emt 0:01:59]} Ne8 {[%emt 0:09:02]} 13. h3 {[%emt 0:12:57]} f5 {[%emt 0:06:24]} 14. Nxd7 {[%emt 0:06:21]} Qxd7 {[%emt 0:01:00]} 15. Qe2 {[%emt 0:00:54]} Nd8 {[%emt 0:09:01]} 16. Ne5 {[%emt 0:09:13]} Qa4 {[%emt 0:06:08]} 17. Bc2 {[%emt 0:07:23]} Qa5 {[%emt 0:11:26]} 18. a4 {[%emt 0:07:24]} Nf6 {[%emt 0:07:30]} 19. f3 {[%emt 0:09:51]} Qb6 {[%emt 0:11:32]} 20. Bd3 {[%emt 0:01:53]} Bd6 {[%emt 0:07:35]} 21. Qf2 {[%emt 0:04:00]} a5 {[%emt 0:05:32]} 22. Re2 {[%emt 0:02:54]} Rc7 {[%emt 0:10:26]} 23. Kh1 {[%emt 0:04:37]} Nh5 {[%emt 0:02:14]} 24. Bh2 {[%emt 0:02:14]} g6 {[%emt 0:01:58]} 25. c4 {[%emt 0:03:46]} Bxe5 {[%emt 0:01:25]} 26. Bxe5 {[%emt 0:00:05]} Rcf7 {[%emt 0:00:44]} 27. c5 {[%emt 0:00:21]} Qb3 {[%emt 0:01:02]} 28. Ra3 {[%emt 0:00:32]} Qb4 {[%emt 0:00:32]} 29. Bb5 {[%emt 0:03:31]} Nc6 {[%emt 0:00:44]} 30. Bxc6 {[%emt 0:00:43]} bxc6 {[%emt 0:00:06]} 31. Rae3 {[%emt 0:02:04]} f4 {[%emt 0:00:24]} 32. Ra3 {[%emt 0:00:42]} Ng3+ {[%emt 0:03:16]} 33. Kh2 {[%emt 0:00:13]} Nxe2 {[%emt 0:00:08]} 34. Qxe2 {[%emt 0:00:03]} Rb7 {[%emt 0:00:35]} 35. Bd6 {[%emt 0:01:01]} Re8 {[%emt 0:00:57]} 36. Qa6 {[%emt 0:02:02]} Rc8 {[%emt 0:01:06]} 37. Qe2 {[%emt 0:00:13]} Re8 {[%emt 0:00:43]} 38. Qa6 {[%emt 0:00:00]} Rc8 {[%emt 0:00:21]} 39. Qe2 {[%emt 0:00:00]} Kf7 {[%emt 0:01:14]} 40. Qe5 {[%emt 0:00:07]} Qxb2 {[%emt 0:00:31]} 41. Qxf4+ {[%emt 0:00:06]} Kg8 {[%emt 0:00:23]} 42. Re3 {[%emt 0:00:50]} Rf7 {[%emt 0:00:26]} 43. Qg4 {[%emt 0:00:25]} Re8 {[%emt 0:00:56]} 44. Rxe6 {[%emt 0:01:08]} Rxe6 {[%emt 0:00:05]} 45. Qxe6 {[%emt 0:00:01]} Qb7 {[%emt 0:00:21]} 46. Qxg6+ 1/2-1/2